Cogmind - Beta 13 @@@ ROGUE MODE // 2024.04.21 @ 16:42:46 Player: tartine Result: Destroyed by DAS Turret with DAS Cannon Performance ------------- Evolutions (0) 0 Regions Visited (3) 600 Robots Destroyed (20) 100 Value Destroyed (519) 519 Prototype IDs (0) 0 Alien Tech Used (0) 0 Bonus (0) 0 TOTAL SCORE: 1219 Bonus ------- None Cogmind --------- Core Integrity 0/250 Matter 300/300 Energy 100/100 System Corruption 3% Temperature Cool (0) Movement Walking (120) Location -10/Exiles Parts ------- > --- POWER (1) -------- (None) > --- PROPULSION (2) --- Aluminum Leg Aluminum Leg > --- UTILITY (2) ------ Small Storage Unit Signal Interpreter > --- WEAPON (2) ------- Particle Gun Assault Rifle > --- INVENTORY (8) ---- Aluminum Leg Aluminum Leg Transport Network Coupler Light Armor Plating Hacking Suite Grenade Launcher Grenade Launcher Mining Laser Peak State ------------ > --- POWER ------------ Light Nuclear Core > --- PROPULSION ------- Aluminum Leg Aluminum Leg > --- UTILITY ---------- Small Storage Unit Signal Interpreter > --- WEAPON ----------- Particle Gun Assault Rifle > --- INVENTORY -------- Wheel Wheel Transport Network Coupler Light Armor Plating Hacking Suite Grenade Launcher Grenade Launcher Mining Laser [Rating: 11] Favorites ----------- Power Light Nuclear Core Engine Ion Engine Power Core Light Nuclear Core Propulsion Aluminum Leg Leg Aluminum Leg Utility Small Storage Unit Device Seismic Detector Storage Small Storage Unit Processor Signal Interpreter Weapon Assault Rifle Energy Gun Particle Gun Ballistic Gun Assault Rifle Launcher Grenade Launcher Build | -11 -10 -10 -10 ------- Run | Yrd Mat Min Exi Slots Evolved . | . . . . Power . | . . . . Propulsion . | . . . . Utility . | . . . . Weapon . | . . . . Parts Attached 16 | 7 5 4 . Power 2 | 1 1 . . Engine 1 | 1 . . . Core 1 | . 1 . . Reactor . | . . . . Propulsion 6 | 2 1 3 . Treads . | . . . . Leg 6 | 2 1 3 . Wheel . | . . . . Hover . | . . . . Flight . | . . . . Utility 3 | 2 1 . . Device 1 | 1 . . . Storage 1 | 1 . . . Processor 1 | . 1 . . Hackware . | . . . . Protection . | . . . . Artifact . | . . . . Weapon 5 | 2 2 1 . Energy Gun 2 | . 1 1 . Energy Cannon . | . . . . Ballistic Gun 2 | 2 . . . Ballistic Cannon . | . . . . Launcher 1 | . 1 . . Special Weapon . | . . . . Impact Weapon . | . . . . Slashing Weapon . | . . . . Piercing Weapon . | . . . . Special Melee Weapon . | . . . . Unidentified Prototypes . | . . . . Parts Lost 5 | . 2 2 1 Power 1 | . . . 1 Propulsion 2 | . 1 1 . Utility . | . . . . Weapon 2 | . 1 1 . Highest Loss Streak 2 | . 1 2 1 To Critical Strikes . | . . . . Average Slot Usage (%) 98 | . 97 98 100 Engine 2 | . 5 . . Core 11 | . 8 14 14 Leg 27 | . 27 27 28 Device 1 | . 3 . . Storage 14 | . 14 14 14 Processor 12 | . 10 14 14 Energy Gun 8 | . 2 13 14 Ballistic Gun 16 | . 19 14 14 Launcher 2 | . 4 . . Naked Turns . | . . . . Heaviest Build 15 | 15 15 15 15 Greatest Support 20 | 20 20 20 20 Greatest Overweight (x) 2 | 2 1 1 . Average Overweight (x) . | . . . . Largest Inventory Capacity 8 | 8 8 8 8 Average Capacity 7 | 7 8 8 8 Most Carried 8 | 8 8 8 8 Average Carried 7 | 5 7 7 8 Final Capacity 8 | 8 8 8 8 Final Carried 8 | 8 8 8 8 Class Distribution -------------------- 50% | Mutant 49% | Scavenger-Mutant Dominant Class ---------------- Mutant | -10/Materials Scavenger-Mutant | -10/Mines Scavenger-Mutant | -10/Exiles Resources | -11 -10 -10 -10 ----------- Run | Yrd Mat Min Exi Matter Collected 758 | 336 297 125 . Remotely . | . . . . Salvage Created 744 | 139 392 213 . Parts 42 | 7 24 11 . Haulers Intercepted 1 | . 1 . . Recyclers Shooed 1 | 1 . . . Parts Field Recycled . | . . . . Retrieved Matter . | . . . . Parts Self-Destructed . | . . . . Prevented . | . . . . Kills | -11 -10 -10 -10 ------- Run | Yrd Mat Min Exi Combat Hostiles Destroyed 11 | . 7 4 . Guns 9 | . 6 3 . AOE 2 | . 1 1 . Classes Destroyed 7 | 3 4 . . Worker 1 | 1 . . . Tunneler 1 | 1 . . . Hauler 1 | . 1 . . Recycler 2 | 1 . 1 . Operator 2 | . 2 . . Watcher 2 | . 2 . . Grunt 11 | . 7 4 . Best Kill Streak 4 | 1 4 3 . Combat Bots Only 2 | . 2 2 . Max Kills in Single Turn 1 | 1 1 1 . Gunslinging . | . . . . Exploded 1 | . 1 1 . Melee . | . . . . Uniques/NPCs Destroyed . | . . . . Combat | -11 -10 -10 -10 -------- Run | Yrd Mat Min Exi Hostile Shots Fired 91 | . 51 25 15 Missed 19 | . 12 3 4 Damage Taken 1010 | . 452 360 198 Core 268 | . 55 101 112 Absorbed by Shields . | . . . . Core Remaining (%) 100 | 100 . . . Volleys Fired 97 | 11 63 23 . Largest 2 | 2 2 2 . Hottest 85 | 40 60 85 . Shots Fired 154 | 22 97 34 1 Gun 152 | 22 96 33 1 Cannon . | . . . . Launcher 2 | . 1 1 . Special . | . . . . Kinetic 133 | 22 88 23 . Thermal 19 | . 8 10 1 Explosive 2 | . 1 1 . Electromagnetic . | . . . . Robot Hit Streak 11 | 6 11 11 . Robot Miss Streak 4 | 4 4 2 1 Penetration Max . | . . . . Secondary Targets 1 | . . 1 . Max Gunslinging Chain 1 | . . 1 . Shots Hit Robots 101 | 13 63 25 . Core Hits 39 | 4 24 11 . Critical Kills . | . . . . Critical Parts Destroyed 1 | . 1 . . Critical Strikes 2 | . 1 1 . Burn 1 | . . 1 . Destroy 1 | . 1 . . Melee Attacks . | . . . . Impact . | . . . . Slashing . | . . . . Piercing . | . . . . Sneak Attacks . | . . . . Combat Hostiles . | . . . . Follow-up Attacks . | . . . . Damage Inflicted 1346 | 162 780 404 . Guns 1242 | 162 752 328 . Cannons . | . . . . Explosions 94 | . 28 66 . Melee . | . . . . Ramming 10 | . . 10 . Kinetic 1096 | 162 721 213 . Thermal 146 | . 31 115 . Explosive 94 | . 28 66 . Electromagnetic . | . . . . Impact . | . . . . Slashing . | . . . . Piercing . | . . . . Highest Corruption 2 | . 1 1 2 Average Corruption 1 | . 1 1 1 Corruption Purged . | . . . . Corruption Blocked . | . . . . Effects 8 | . . 6 2 Message Errors 2 | . . 2 . Matter Fused 2 | . . 1 1 Heat Flow Errors 1 | . . 1 . Parts Rejected 1 | . . 1 . Data Loss (minor) 1 | . . 1 . Misfires 1 | . . . 1 Overload Shots . | . . . . Overflow Damage . | . . . . Projectiles . | . . . . Explosions . | . . . . Melee . | . . . . Knockbacks . | . . . . Impact . | . . . . Kinetic . | . . . . Secondary . | . . . . Self-Inflicted Damage 39 | . . 39 . Shots 1 | . . 1 . Rammed . | . . . . Targets Rammed 2 | . . 2 . Kicked 2 | . . 2 . Crushed . | . . . . Highest Temperature 225 | . 20 225 30 Average Temperature 66 | . 7 92 19 Received Heat Transfer 468 | . 270 198 . Siege Activations . | . . . . Robots Corrupted . | . . . . Combat Hostiles . | . . . . Parts Fried . | . . . . Impact Corruptions . | . . . . Robots Melted . | . . . . Combat Hostiles . | . . . . Parts Melted . | . . . . Heat Transferred 445 | . 75 370 . Parts Sabotaged . | . . . . Parts Stolen . | . . . . Parts Stripped . | . . . . Power Chain Reactions . | . . . . Alert | -11 -10 -10 -10 ------- Run | Yrd Mat Min Exi Peak Influence 191 | 15 191 145 . Initial 48 | . 9 48 . Average 65 | 4 62 84 . Maximum Alert Level . | . . . . Low Security (%) 100 | 100 100 100 . Level 1 . | . . . . Level 2 . | . . . . Level 3 . | . . . . Level 4 . | . . . . Level 5 . | . . . . High Security . | . . . . Max Security . | . . . . Squads Dispatched 3 | . 3 . . Investigation 1 | . 1 . . Extermination . | . . . . Reinforcement 2 | . 2 . . Assault . | . . . . Garrison . | . . . . Intercept . | . . . . Searches Triggered . | . . . . Construction Impeded . | . . . . Haulers Reinforced . | . . . . Active Scanning Responses . | . . . . Cargo Convoy Interrupts . | . . . . Stealth | -11 -10 -10 -10 --------- Run | Yrd Mat Min Exi Distress Signals . | . . . . Communications Jammed . | . . . . Distress Signals . | . . . . Times Spotted 26 | . 16 4 6 Peak Tracking Total 14 | . 3 2 14 Tactical Retreats 5 | . 4 . 1 Traps | -11 -10 -10 -10 ------- Run | Yrd Mat Min Exi Traps Triggered . | . . . . Indirectly . | . . . . Trap Hack Attempts . | . . . . Triggered . | . . . . Disarmed . | . . . . Reprogrammed . | . . . . Reused . | . . . . Traps Extracted . | . . . . Installed . | . . . . Triggered . | . . . . Machines | -11 -10 -10 -10 ---------- Run | Yrd Mat Min Exi Machines Disabled 4 | . 3 . 1 Max in Single Turn 2 | . 2 . 1 Machines Repaired . | . . . . Machines Dismantled . | . . . . Machines Sabotaged . | . . . . Overloaded Fab Kills . | . . . . Hacking | -11 -10 -10 -10 --------- Run | Yrd Mat Min Exi Machines Accessed 5 | . 5 . . Terminals 5 | . 5 . . Fabricators . | . . . . Repair Stations . | . . . . Recycling Units . | . . . . Scanalyzers . | . . . . Garrison Access . | . . . . Total Hacks 13 | . 13 . . Successful 6 | . 6 . . Failed 7 | . 7 . . Catastrophic 2 | . 2 . . Database Lockouts . | . . . . Manual 4 | . 4 . . Terminals 13 | . 13 . . Fabricators . | . . . . Repair Stations . | . . . . Recycling Units . | . . . . Scanalyzers . | . . . . Garrison Access . | . . . . Terminal Hacks 6 | . 6 . . Record 2 | . 2 . . Alert Level 2 | . 2 . . Unreport Threat 1 | . 1 . . Hauler Manifests 1 | . 1 . . Fabricator Hacks . | . . . . Repair Station Hacks . | . . . . Recycling Unit Hacks . | . . . . Scanalyzer . | . . . . Garrison Access Hacks . | . . . . Unauthorized Hacks . | . . . . Terminals . | . . . . Fabricators . | . . . . Repair Stations . | . . . . Recycling Units . | . . . . Scanalyzers . | . . . . Garrison Access . | . . . . Data Cores Recovered . | . . . . Used . | . . . . Hacking Detections 5 | . 5 . . Full Trace Events 3 | . 3 . . Feedback Events 1 | . 1 . . Corruption 1 | . 1 . . Feedback Blocked . | . . . . Robot Schematics Acquired . | . . . . Robots Built . | . . . . Authchips . | . . . . Time . | . . . . Total Robot Build Rating . | . . . . Part Schematics Acquired . | . . . . Parts Built . | . . . . Authchips . | . . . . Time . | . . . . Total Part Build Rating . | . . . . Parts Repaired . | . . . . Time . | . . . . Parts Recycled . | . . . . Recycled Matter . | . . . . Retrieved Matter . | . . . . Retrieved Components . | . . . . Parts Scanalyzed . | . . . . Part Schematics Acquired . | . . . . Parts Damaged . | . . . . Bothacking | -11 -10 -10 -10 ------------ Run | Yrd Mat Min Exi Used RIF Installer . | . . . . Robots Hacked . | . . . . Non-combat . | . . . . Combat . | . . . . Robot Hacks Applied . | . . . . Relay Couplers Released . | . . . . Fabnet Peak Effective % . | . . . . Robots Rewired . | . . . . Allies Hacked . | . . . . Hacks Repelled . | . . . . Allies | -11 -10 -10 -10 -------- Run | Yrd Mat Min Exi Total Allies 2 | . . 2 . Largest Group 2 | . . 2 2 Highest-Rated Group 41 | . . 41 41 Highest-Rated Ally 31 | . . 31 31 Total Orders . | . . . . Ally Attacks . | . . . . Total Damage . | . . . . Kills . | . . . . Allies Corrupted . | . . . . Allies Melted . | . . . . Intel | -11 -10 -10 -10 ------- Run | Yrd Mat Min Exi Robot Analysis Total . | . . . . Derelict Logs Recovered 3 | . . 3 . Drone Launches . | . . . . Drone Recoveries . | . . . . Exploration | -11 -10 -10 -10 ------------- Run | Yrd Mat Min Exi Turns Passed 1617 | 151 638 613 215 Spaces Moved 1040 | 77 349 435 179 Core 22 | 22 . . . Treads . | . . . . Legs 1018 | 55 349 435 179 Wheels . | . . . . Hover . | . . . . Flight . | . . . . Fastest Speed 50 | 50 120 120 120 Average Speed 120 | 120 120 120 120 Slowest Speed 190 | 150 190 190 120 Overloaded Moves . | . . . . Propulsion Burnouts . | . . . . Robots Hopped . | . . . . Cave-ins Triggered . | . . . . Exploration Rate (%) 48 | 5 61 78 50 Regions Visited 3 Branch Regions 2 Pre-discovered Areas 3 | . . 3 . Known Exits Taken 2 | . 1 1 . Unknown Exits Taken 1 | 1 . . . Scrap Searched . | . . . . Spaces Dug . | . . . . Terrain Destroyed 36 | . 24 12 . Melee . | . . . . Projectile . | . . . . AOE 36 | . 24 12 . Terrain Rammed . | . . . . Walls Destroyed . | . . . . Machines Disabled . | . . . . Actions | -11 -10 -10 -10 --------- Run | Yrd Mat Min Exi Total 1254 | 113 473 489 179 Wait 56 | 2 33 21 . Move 1037 | 76 348 434 179 Hop . | . . . . Pick Up 30 | 16 12 2 . Fast Attach 5 | . 2 3 . Attach 8 | 7 1 . . Detach . | . . . . Swap 3 | . 2 1 . Drop 16 | 1 12 3 . Fire 97 | 11 63 23 . Melee . | . . . . Ram . | . . . . Kick 2 | . . 2 . Crush . | . . . . Escape Stasis . | . . . . Rewire . | . . . . Trap . | . . . . Miscellaneous . | . . . . Route ------- -11/Scrapyard -10/Materials (discovered 2 exits: *Mat / *Min) -10/Mines -10/Exiles (discovered 1 exit: *Min) History --------- Turn | Location | Event 14 | -11/Scrapyard | Discovered new exit (range 16) 152 | -11/Scrapyard | Entered Materials 305 | -10/Materials | Build established: Mutant 568 | -10/Materials | Discovered new exit (range 4) 570 | -10/Materials | Identified exit to Materials 731 | -10/Materials | Discovered new exit (range 10) 780 | -10/Materials | Identified exit to Mines 790 | -10/Materials | Entered Mines 817 | -10/Mines | Core integrity fell below 50% 977 | -10/Mines | Learned location of Storage (-8) 1107 | -10/Mines | Assembled infested the area 1109 | -10/Mines | Build established: Scavenger-Mutant 1267 | -10/Mines | Learned location of Zion (-7) 1389 | -10/Mines | Deemed a non-threat by the Exiles lab entrance 1389 | -10/Mines | Discovered new exit (range 5) 1393 | -10/Mines | Identified exit to Exiles 1403 | -10/Mines | Entered Exiles 1403 | -10/Exiles | Accompanied by 2 allies 1426 | -10/Exiles | Discovered new exit (range 14) 1433 | -10/Exiles | Led the pair of lost Derelicts to a safe place 1441 | -10/Exiles | Identified exit to Mines 1465 | -10/Exiles | Met 8R-AWN 1493 | -10/Exiles | Met EX-HEX 1561 | -10/Exiles | Met EX-DEC 1596 | -10/Exiles | Visited The Gauntlet 1602 | -10/Exiles | Attacked by the Exiles 1618 | -10/Exiles | Destroyed by DAS Turret with DAS Cannon Last Messages --------------- Nope, the Imprinter put them there mostly to keep us out! Anyway, I've got to get back to poking and prodding these nasty little guys. Go see BIN. I can't imagine you'll want to stay in our boring little cave for long, and we could use some help with the project in the back. EX-DEC: Ah I see we have a visitor. One wrong move in here and I'll invert your atomic chain! 01563_ EX-DEC: "Oops, I hope HEX didn't hear that..." 01602_ System corrupted: FCS attempts to trigger Particle Gun. 01602_ System corrupted: Particle Gun misfires. 01602_ EXILES: Hostile robot within lab perimeter. Defensive protocols time, folks! 01602_ Machine disabled. 01618_ EX-BIN: "I just want to science!" 01618_ Lgt. Nuclear Core destroyed. Map ----- +----------------------------------------------------+ | ???????????? " " " " | | ??????????? " | | ???????????? | | ???????????? | | ???????????? | | ????????????#" | | ????????????#""" ??"""" | | ????????????#" ??????#""" | | ???????????#"" ""??????#####""" | | ???????????#""" """#??????????##""" | | ???????????""" c"""#????????????#"""" | | ??????????#""" ""#???????????##"" | | ??????????#"" ########??####"""" | | ??????????#""" ## ####""" | | ??????????#"" t z """" | | ??????????##"" | | ???????????#"""" | | ???????????## | | ????????????#" " "" | | ????????????#"""" ""## ##""" " " " | | ????????????#"" ""#### ######""" "" | | ????????????#" """"##??# #????###"""" | | ????????????#""" """#???# #??????##### | | ????????????## ""##??#! "?????????? | | ?????????????#"" """##???#" !#???????? | | ?????????????##""" @ ##????#" "#???????? | | ??????????????##"""" %##?????#!!""!"#???????? | | ???????????????### #??????########???????? | | ?????????????????##### c##?????????????????????? | | ?????????????????????## #??????????????????????? | | ??????????????????????# #??????????????????????? | | ??????????????????????# #??????????????????????? | | ??????????????????????# #??????????????????????? | | ??????????????????????# #??????????????????????? | | ??????????????????????#z z#??????????????????????? | | ??????????????????????# #??????????????????????? | | ??????????????????????# #??????????????????????? | | ??????????????????????# #??????????????????????? | | ??????????????????????# #??????????????????????? | | ??????????????????##### #####??????????????????? | | ??????????????????""""" """""??????????????????? | | ????????????? "#???????????????? | | ???????????? " ??????????????? | | ??????????? " "????????????? | | ?????????? " "????????????? | | ??????????? "" #""?????????????? | | ???????????"" " " "" """""#???????????????? | | ????????????##"""########"""######???????????????? | | ?????????????" ?????????? "????????????????????? | | ????????????????????????? ""????????????????????? | +----------------------------------------------------+ Best States ------------- Heat Dissipation 25 Energy Generation 14 Energy Capacity 250 Matter Stores 300 Matter Capacity 300 Sight Range 16 Terrain Scan Density 10 Evasion (%) 55 Item Schematics ----------------- None Robot Schematics ------------------ None Fabricated ------------ Nothing Alien Tech Used ----------------- None Achievements -------------- Shopping List Challenges ------------ None Game ------ Seed QuantumScatterNullifier Manual? 0 Play Time 00:20:59 Cumulative 10.7 hours Start 2024.04.21 @ 16:18:00 End 2024.04.21 @ 16:42:46 Sessions 1 Manual Loads 0 Difficulty Rogue Special Mode None Game No. 11 Rogue 11 Adventurer 0 Explorer 0 Win Type - Total 0 Types 0/0/0/0/0/0/0/0/0 Lore% 9 Gallery% 15 Achievement% 12 Wizard Run 0 Options --------- Layout 1 ASCII 0 Keyboard 0 Movement Mouse Keybinds 0 Fullscreen 1 Font 24/Smallcaps Map View 50x35 Zoom Use 0% Tactical HUD 1 Map Filters NONE Filters NONE Steam 1 RUN: ae6bb276-c829-49ab-9e31-575b71877d68